Cogmind - Beta 13 X1 @@@ ROGUE MODE // 2023.11.29 @ 23:59:59 Player: alice_fexa Result: Destroyed by WN-CLZ(R) with Subdweller Machine Gun Performance ------------- Evolutions (0) 0 Regions Visited (2) 400 Robots Destroyed (26) 130 Value Destroyed (625) 625 Prototype IDs (0) 0 Alien Tech Used (0) 0 Bonus (0) 0 TOTAL SCORE: 1155 Bonus ------- None Cogmind --------- Core Integrity 0/250 Matter 252/300 Energy 48/100 System Corruption 0% Temperature Cool (0) Movement Treading (160) Location -10/Subcaves Parts ------- > --- POWER (1) -------- (None) > --- PROPULSION (2) --- Light Treads Light Treads > --- UTILITY (2) ------ Large Storage Unit Structural Scanner > --- WEAPON (2) ------- Subdweller Beam Cannon Light Cannon > --- INVENTORY (15) --- Light Nuclear Core Subdweller Monowheel Disposable Heat Sink Disposable Heat Sink Disposable Heat Sink Medium Storage Unit Large Matter Pod (150) Sensor Array Authchip [Weapon] Small Laser Small Laser Light Assault Rifle Light Assault Rifle Light Assault Rifle Peak State ------------ > --- POWER ------------ Ion Engine > --- PROPULSION ------- Light Treads Wheel > --- UTILITY ---------- Improved Heat Sink Large Storage Unit > --- WEAPON ----------- Particle Gun Light Cannon > --- INVENTORY -------- Ion Engine Light Nuclear Core Light Treads Light Treads Wheel Medium Storage Unit Large Matter Pod Structural Scanner Sensor Array Authchip [Weapon] Small Laser Small Laser Light Assault Rifle Light Assault Rifle Light Assault Rifle [Rating: 12] Favorites ----------- Power Ion Engine Engine Ion Engine Propulsion Light Treads Treads Light Treads Wheel Compact Wheel Utility Large Storage Unit Device Improved Heat Sink Storage Large Storage Unit Weapon Light Assault Rifle Energy Gun Small Laser Energy Cannon Subdweller Beam Cannon Ballistic Gun Light Assault Rifle Ballistic Cannon Light Cannon Build | -11 -10 -10 ------- Run | Jun Mat Sub Slots Evolved . | . . . Power . | . . . Propulsion . | . . . Utility . | . . . Weapon . | . . . Parts Attached 30 | 6 11 13 Power 4 | 1 2 1 Engine 4 | 1 2 1 Core . | . . . Reactor . | . . . Propulsion 9 | 2 4 3 Treads 4 | 1 1 2 Leg . | . . . Wheel 5 | 1 3 1 Hover . | . . . Flight . | . . . Utility 11 | 1 4 6 Device 9 | . 3 6 Storage 2 | 1 1 . Processor . | . . . Hackware . | . . . Protection . | . . . Artifact . | . . . Weapon 6 | 2 1 3 Energy Gun 2 | . . 2 Energy Cannon 1 | . . 1 Ballistic Gun 2 | 2 . . Ballistic Cannon 1 | . 1 . Launcher . | . . . Special Weapon . | . . . Impact Weapon . | . . . Slashing Weapon . | . . . Piercing Weapon . | . . . Special Melee Weapon . | . . . Unidentified Prototypes . | . . . Parts Lost 7 | . . 7 Power 2 | . . 2 Propulsion 3 | . . 3 Utility 1 | . . 1 Weapon 1 | . . 1 Highest Loss Streak 3 | . . 3 To Critical Strikes 1 | . . 1 Average Slot Usage (%) 98 | . 98 98 Engine 13 | . 14 13 Treads 17 | . 14 23 Wheel 10 | . 14 4 Device 12 | . 12 13 Storage 14 | . 14 14 Energy Gun 2 | . . 7 Energy Cannon 2 | . . 7 Ballistic Gun 18 | . 27 . Ballistic Cannon 4 | . . 14 Naked Turns . | . . . Heaviest Build 37 | 10 30 37 Greatest Support 40 | 16 16 40 Greatest Overweight (x) 3 | . 2 3 Average Overweight (x) . | . 1 . Largest Inventory Capacity 15 | 8 15 15 Average Capacity 13 | 6 13 15 Most Carried 15 | 4 15 15 Average Carried 11 | 2 12 12 Final Capacity 15 | 8 15 15 Final Carried 15 | 4 15 14 Class Distribution -------------------- 100% | Mutant Dominant Class ---------------- Mutant | -10/Materials Mutant | -10/Subcaves Resources | -11 -10 -10 ----------- Run | Jun Mat Sub Matter Collected 859 | 187 463 209 Remotely 241 | . 241 . Salvage Created 1008 | . 808 200 Parts 52 | . 41 11 Haulers Intercepted 1 | . 1 . Recyclers Shooed 2 | . 2 . Parts Field Recycled . | . . . Retrieved Matter . | . . . Parts Self-Destructed . | . . . Prevented . | . . . Kills | -11 -10 -10 ------- Run | Jun Mat Sub Combat Hostiles Destroyed 16 | . 9 7 Guns 11 | . 9 2 Cannons 5 | . . 5 Classes Destroyed 7 | . 6 1 Builder 1 | . 1 . Hauler 1 | . 1 . Recycler 5 | . 5 . Watcher 3 | . 3 . Swarmer 3 | . 3 . Grunt 6 | . 6 . Subdweller 7 | . . 7 Best Kill Streak 3 | . 3 3 Combat Bots Only 3 | . 3 3 Max Kills in Single Turn 1 | . 1 1 Gunslinging . | . . . Exploded . | . . . Melee . | . . . Uniques/NPCs Destroyed . | . . . Combat | -11 -10 -10 -------- Run | Jun Mat Sub Damage Taken 1181 | . 350 831 Core 253 | . 130 123 Absorbed by Shields . | . . . Core Remaining (%) 100 | 100 . . Volleys Fired 108 | . 74 34 Largest 2 | . 2 2 Hottest 115 | . 40 115 Shots Fired 211 | . 144 67 Gun 168 | . 140 28 Cannon 43 | . 4 39 Launcher . | . . . Special . | . . . Kinetic 178 | . 144 34 Thermal 33 | . . 33 Explosive . | . . . Electromagnetic . | . . . Robot Hit Streak 15 | . 15 14 Robot Miss Streak 4 | . 4 1 Penetration Max . | . . . Secondary Targets . | . . . Shots Hit Robots 161 | . 104 57 Core Hits 65 | . 49 16 Critical Kills 2 | . 2 . Critical Parts Destroyed 1 | . 1 . Critical Strikes 7 | . 3 4 Burn 1 | . . 1 Destroy 3 | . 3 . Blast 3 | . . 3 Melee Attacks . | . . . Impact . | . . . Slashing . | . . . Piercing . | . . . Sneak Attacks . | . . . Combat Hostiles . | . . . Follow-up Attacks . | . . . Damage Inflicted 1691 | . 825 866 Guns 1124 | . 825 299 Cannons 567 | . . 567 Explosions . | . . . Melee . | . . . Ramming . | . . . Kinetic 1314 | . 825 489 Thermal 377 | . . 377 Explosive . | . . . Electromagnetic . | . . . Impact . | . . . Slashing . | . . . Piercing . | . . . Highest Corruption . | . . . Average Corruption . | . . . Corruption Purged . | . . . Corruption Blocked . | . . . Overload Shots . | . . . Overflow Damage . | . . . Projectiles . | . . . Explosions . | . . . Melee . | . . . Knockbacks 5 | . . 5 Impact . | . . . Kinetic 5 | . . 5 Secondary . | . . . Self-Inflicted Damage . | . . . Shots . | . . . Rammed . | . . . Targets Rammed . | . . . Kicked . | . . . Crushed . | . . . Highest Temperature 34 | . 34 . Average Temperature 14 | . 14 . Received Heat Transfer 273 | . 183 90 Siege Activations . | . . . Robots Corrupted . | . . . Combat Hostiles . | . . . Parts Fried . | . . . Impact Corruptions . | . . . Robots Melted . | . . . Combat Hostiles . | . . . Parts Melted 2 | . . 2 Heat Transferred 906 | . . 906 Parts Sabotaged . | . . . Parts Stolen . | . . . Parts Stripped . | . . . Power Chain Reactions . | . . . Missiles Intercepted . | . . . Alert | -11 -10 -10 ------- Run | Jun Mat Sub Peak Influence 209 | . 209 . Initial . | . . . Average 80 | . 84 . Maximum Alert Level 1 | . 1 . Low Security (%) 96 | 100 96 . Level 1 3 | . 3 . Level 2 . | . . . Level 3 . | . . . Level 4 . | . . . Level 5 . | . . . High Security . | . . . Max Security . | . . . Squads Dispatched 4 | . 4 . Investigation 1 | . 1 . Extermination . | . . . Reinforcement 3 | . 3 . Assault . | . . . Garrison . | . . . Intercept . | . . . Searches Triggered . | . . . Construction Impeded . | . . . Haulers Reinforced . | . . . Active Scanning Responses . | . . . Cargo Convoy Interrupts . | . . . Stealth | -11 -10 -10 --------- Run | Jun Mat Sub Distress Signals 2 | . 2 . Communications Jammed . | . . . Distress Signals . | . . . Times Spotted 27 | . 18 9 Peak Tracking Total 3 | . 3 2 Tactical Retreats 1 | . . 1 Traps | -11 -10 -10 ------- Run | Jun Mat Sub Traps Triggered 1 | . 1 . Indirectly . | . . . Trap Hack Attempts . | . . . Triggered . | . . . Disarmed . | . . . Reprogrammed . | . . . Reused . | . . . Traps Extracted . | . . . Installed . | . . . Triggered . | . . . Machines | -11 -10 -10 ---------- Run | Jun Mat Sub Machines Disabled . | . . . Max in Single Turn . | . . . Machines Repaired . | . . . Machines Sabotaged . | . . . Overloaded Fab Kills . | . . . Hacking | -11 -10 -10 --------- Run | Jun Mat Sub Machines Accessed 6 | . 6 . Terminals 5 | . 5 . Fabricators . | . . . Repair Stations . | . . . Recycling Units 1 | . 1 . Scanalyzers . | . . . Garrison Access . | . . . Total Hacks 15 | . 15 . Successful 9 | . 9 . Failed 6 | . 6 . Catastrophic 2 | . 2 . Database Lockouts . | . . . Manual 12 | . 12 . Terminals 14 | . 14 . Fabricators . | . . . Repair Stations . | . . . Recycling Units 1 | . 1 . Scanalyzers . | . . . Garrison Access . | . . . Terminal Hacks 5 | . 5 . Robot Analysis 1 | . 1 . Locate Traps 2 | . 2 . Recall Reinforcements 1 | . 1 . Zone Layout 1 | . 1 . Fabricator Hacks . | . . . Repair Station Hacks . | . . . Recycling Unit Hacks 1 | . 1 . Retrieve Components 1 | . 1 . Scanalyzer . | . . . Garrison Access Hacks . | . . . Unauthorized Hacks 3 | . 3 . Terminals 3 | . 3 . Botnet 3 | . 3 . Fabricators . | . . . Repair Stations . | . . . Recycling Units . | . . . Scanalyzers . | . . . Garrison Access . | . . . Data Cores Recovered . | . . . Used . | . . . Hacking Detections 5 | . 5 . Full Trace Events . | . . . Feedback Events . | . . . Feedback Blocked . | . . . Robot Schematics Acquired . | . . . Robots Built . | . . . Authchips . | . . . Time . | . . . Total Robot Build Rating . | . . . Part Schematics Acquired . | . . . Parts Built . | . . . Authchips . | . . . Time . | . . . Total Part Build Rating . | . . . Parts Repaired . | . . . Time . | . . . Parts Recycled . | . . . Recycled Matter . | . . . Retrieved Matter . | . . . Retrieved Components 4 | . 4 . Parts Scanalyzed . | . . . Part Schematics Acquired . | . . . Parts Damaged . | . . . Bothacking | -11 -10 -10 ------------ Run | Jun Mat Sub Used RIF Installer . | . . . Robots Hacked . | . . . Non-combat . | . . . Combat . | . . . Robot Hacks Applied . | . . . Relay Couplers Released . | . . . Fabnet Peak Effective % . | . . . Robots Rewired . | . . . Allies Hacked . | . . . Hacks Repelled . | . . . Allies | -11 -10 -10 -------- Run | Jun Mat Sub Total Allies . | . . . Largest Group . | . . . Highest-Rated Group . | . . . Highest-Rated Ally . | . . . Total Orders . | . . . Ally Attacks . | . . . Total Damage . | . . . Kills . | . . . Allies Corrupted . | . . . Allies Melted . | . . . Intel | -11 -10 -10 ------- Run | Jun Mat Sub Robot Analysis Total 1 | . 1 . Derelict Logs Recovered . | . . . Drone Launches . | . . . Drone Recoveries . | . . . Exploration | -11 -10 -10 ------------- Run | Jun Mat Sub Turns Passed 1691 | 50 1105 536 Spaces Moved 993 | 42 687 264 Core 9 | 9 . . Treads 192 | . . 192 Legs . | . . . Wheels 792 | 33 687 72 Hover . | . . . Flight . | . . . Fastest Speed 50 | 50 100 110 Average Speed 119 | 89 111 146 Slowest Speed 160 | 100 115 160 Overloaded Moves . | . . . Propulsion Burnouts . | . . . Robots Hopped . | . . . Cave-ins Triggered . | . . . Exploration Rate (%) 37 | 4 91 17 Regions Visited 2 Branch Regions 1 Pre-discovered Areas . | . . . Known Exits Taken . | . . . Unknown Exits Taken 2 | 1 1 . Scrap Searched . | . . . Spaces Dug . | . . . Terrain Destroyed . | . . . Melee . | . . . Projectile . | . . . AOE . | . . . Terrain Rammed . | . . . Walls Destroyed . | . . . Machines Disabled . | . . . Actions | -11 -10 -10 --------- Run | Jun Mat Sub Total 1312 | 51 916 345 Wait 147 | . 117 30 Move 991 | 41 686 264 Hop . | . . . Pick Up 22 | 4 15 3 Fast Attach 10 | 6 2 2 Attach 5 | . . 5 Detach 2 | . 1 1 Swap 15 | . 9 6 Drop 12 | . 12 . Fire 108 | . 74 34 Melee . | . . . Ram . | . . . Kick . | . . . Crush . | . . . Escape Stasis . | . . . Rewire . | . . . Trap . | . . . Miscellaneous . | . . . Route ------- -11/Junkyard -10/Materials (discovered 5 exits: [*Mat x2] / [*Min x2] / [*Sub]) -10/Subcaves (discovered 2 exits: [*Mat x2]) History --------- Turn | Location | Event 20 | -11/Junkyard | Discovered new exit (range 16) 51 | -11/Junkyard | Entered Materials 229 | -10/Materials | Discovered new exit (range 19) 313 | -10/Materials | Build established: Mutant 520 | -10/Materials | Discovered new exit (range 16) 573 | -10/Materials | Core integrity fell below 50% 769 | -10/Materials | Discovered new exit (range 16) 937 | -10/Materials | Discovered new exit (range 6) 1066 | -10/Materials | Discovered new exit (range 15) 1156 | -10/Materials | Entered Subcaves 1229 | -10/Subcaves | Discovered new exit (range 16) 1242 | -10/Subcaves | Lost 3 parts (1p1n1w) 1291 | -10/Subcaves | Core integrity fell below 20% 1347 | -10/Subcaves | Lost 3 parts (2n1u) 1434 | -10/Subcaves | Discovered new exit (range 17) 1692 | -10/Subcaves | Destroyed by WN-CLZ(R) with Subdweller Machine Gun Last Messages --------------- 01334_ Acquired 37 matter. 01335_ Acquired 32 matter. 01337_ Acquired 4 matter. 01395_ 4U-AFK(R) knocked back. 01398_ 4U-AFK(R) Sub. Beam Cannon blasted off. 01414_ GN-8UX(R) destroyed. 01417_ Acquired 25 matter. 01421_ Acquired Sub. Beam Cannon. 01423_ Acquired 3 matter. 01426_ Acquired 1 matter. 01434_ EXIT=FOUND 01501_ Acquired Disposable Heat Sink. 01508_ Acquired 1 matter. 01513_ Acquired Sub. Monowheel. 01538_ Acquired Disposable Heat Sink. 01541_ Acquired 8 matter. 01681_ Ion Engine destroyed. 01686_ Sub. Laser melted. 01686_ KK-XTH(R) destroyed. 01689_ WN-CLZ(R) knocked back. Map ----- +----------------------------------------------------+ | ???### ### ## ##?????????????? | | ??? ## ########?????????????? | | ???" ########?????????????? | | ???? ##??####?????????????? | | ???? ## #########????????????? | | ?????? #### ## ##### ###????????????? | | ???????####""#### #### ### ##????????????? | | ???????#### ## ###### ##????????????? | | ????????### ###### ##????????????? | | ????????## # ## ##### ???????????????? | | ????????### ####### ##### ##???????????????? | | ????????####### #### ##### ####?????????????? | | ?????????????????### #### ####?????????????? | | ??????????????????#### ##?????????????? | | ??????????????????## ##?????????????? | | ??????????????????#### # ##?????????????? | | ??????????????????###### ##?????????????? | | ????????????????????#### ##?????????????? | | ?????????????????????### ###?????????????? | | ?????????????????????## #####?????????????? | | ????????????????????### ####??????????????? | | ?????????????????###### #####?????????????? | | ?????????????????##### #####?????????????? | | ?????????????????## ##?????????????? | | ?????????????????## %% ###?????????????? | | ?????????????????## @&! ####?????????????? | | ?????????????????## """##% "###??????????????? | | ?????????????????###"""###!%R##???????????????? | | ?????????????????######## """##???????????????? | | ??????????????????####### """##???????????????? | | ???????????????????????## """"##??????????????? | | ???????????????????????### "" ##??????????????? | | ???????????????????????### " ##??????????????? | | ????????????????????????## ??????????????????? | | ????????????????????????" ??????????????????? | | ????????????????????????? ""??????????????????? | | ??????????????????????????????????????????????? | | ??????????????????????????????????????????????? | | ??????????????????????????????????????????????? | | ??????????????????????????????????????????????? | | ??????????????????????????????????????????????? | | ??????????????????????????????????????????????? | | ??????????????????????????????????????????????? | | ??????????????????????????????????????????????? | | ??????????????????????????????????????????????? | | ??????????????????????????????????????????????? | | ??????????????????????????????????????????????? | | ??????????????????????????????????????????????? | | ??????????????????????????????????????????????? | | ??????????????????????????????????????????????? | +----------------------------------------------------+ Best States ------------- Heat Dissipation 39 Coolant Potential 50 Energy Generation 10 Energy Capacity 250 Matter Stores 300 Matter Capacity 300 Sight Range 16 Terrain Scan Density 10 Evasion (%) 50 Recoil Reduction 2 Authchip Count 1 Item Schematics ----------------- None Robot Schematics ------------------ None Fabricated ------------ Nothing Alien Tech Used ----------------- None Achievements -------------- None Challenges ------------ None Game ------ Seed ElectronAssembledWheel Manual? 0 Play Time 00:12:46 Cumulative 1253.0 hours Start 2023.11.29 @ 23:50:02 End 2023.11.29 @ 23:59:59 Sessions 1 Manual Loads 0 Difficulty Rogue Special Mode None Game No. 910 Rogue 870 Adventurer 40 Explorer 0 Win Type - Total 146 Types 71/7/43/2/1/4/15/2/1 Lore% 92 Gallery% 95 Achievement% 82 Wizard Run 0 Options --------- ASCII 0 Keyboard 0 Movement Numpad Keybinds 0 Fullscreen 0 Font 20/Terminus Map View 76x50 Tactical HUD 1 Map Filters NONE Filters NONE Steam 1 RUN: dd714924-46a1-4779-ac7b-c30b1860ef02